Workbook

Sheet Складские камеры-Standard 80
A1: 0
D3: 2018-05-03
B6: ПРАЙС-ЛИСТ КАМЕРЫ POLAIR Standard (80мм) СКЛАДСКИЕ ПОЗИЦИИ
B11: Базовые цены с учетом НДС
B12: Код | C12: Модель | D12: Размеры, мм | E12: Цена, Руб | G12: Цена, Руб
B13: 1070001 | C13: КХН-2,94 | D13: 1360*1360, h=2200 | E13: 53894.295 | G13: =H13*1.15 -> 45160.5 | H13: 39270
B14: 1070004 | C14: КХН-4,41 | D14: 1360*1960, h=2200 | E14: 64556.31 | G14: 53935 | H14: 46900
B15: 1070034 | C15: КХН-6,61 | D15: 1960*1960, h=2200 | E15: 74875.6575 | G15: 62560 | H15: 54400
B16: 1070285 | C16: КХН-7,71 | D16: 1960*2260, h=2200 | E16: 83689.515 | G16: 72220 | H16: 62800
B17: 1070010 | C17: КХН-8,81 | D17: 1960*2560, h=2200 | E17: 88419.45 | G17: 73830 | H17: 64200
B18: 1070078 | C18: КХН-11,02 | D18: 1960*3160, h=2200 | E18: 101435.1975 | G18: 84755 | H18: 73700
B19: 1070016 | C19: КХН-11,75 | D19: 2560*2560, h=2200 | E19: 102553.08 | G19: 85675 | H19: 74500
B45: Производитель оставляет за собой право частичного изменения технических характеристик оборудования без принципиальных изменений
B46: его эксплуатационных свойств
B47: ег

Sheet Камеры-Standard 80
G3: 2018-05-03
A4: Сборно-разборные холодильные камеры из сендвич-панелей с соединением ШИП-ПАЗ из жесткого ПВХ
G7: толщина панели 80 мм
A8: ПРАЙС-ЛИСТ - КАМЕРЫ POLAIR Standard (80мм) ИЗ СТАНДАРТНЫХ ПАНЕЛЕЙ
A9: Базовые цены с учетом НДС
A10: Внешние габариты | C10: Высота 2 200 мм | E10: Высота 2 460 мм | G10: Высота 2 720 мм
A11: Длина | B11: Ширина | C11: объём, м3 | D11: Цена, Руб. | E11: объём, м3 | F11: Цена, Руб. | G11: объём, м3 | H11: Цена, Руб.
A12: 1360 | B12: 1360 | C12: 2.94 | D12: 0 | E12: 3.31 | F12: 59739.56777 | G12: 3.69 | H12: 63946.36956
B13: 1660 | C13: 3.67 | D13: 61837.44 | E13: 4.14 | F13: 65947.07661 | G13: 4.61 | H13: 70581.80874
B14: 1960 | C14: 4.41 | D14: 0 | E14: 4.97 | F14: 72155.04997 | G14: 5.53 | H14: 77217.24792
B15: 2260 | C15: 5.14 | D15: 73385.8965 | E15: 5.8 | F15: 78363.21496 | G15: 6.45 | H15: 83863.38943
B16: 2560 | C16: 5.88 | D16: 79175.77272 | E16: 6.62 | F16: 84580.44495 | G16: 7.37 | H16: 90498.82861
B17: 2860 | C17: 6.61 | D17: 84944.32388 | E17: 7.45 | F17: 90777.08897 | G17: 8.29 | H17: 97134.2678
B18: 3160 | C18: 7.34 | D18: 90712.87504 | E18: 8.28 | F18: 96984.4353 | G18: 9.22 | H18: 103769.707
B19: 3460 | C19: 8.08 | D19: 96502.83084 | E19: 9.11 | F19: 103191.7816 | G19: 10.14 | H19: 110415.8485
B20: 3760 | C20: 8.81 | D20: 102271.382 | E20: 9.94 | F20: 109399.128 | G20: 11.06 | H20: 117040.5854
B21: 4060 | C21: 9.55 | D21: 108061.3378 | E21: 10.76 | F21: 115606.4743 | G21: 11.98 | H21: 123676.0245
B22: 4360 | C22: 10.28 | D22: 113829.889 | E22: 11.59 | F22: 121813.8206 | G22: 12.9 | H22: 130311.4637
B23: 4660 | C23: 11.02 | D23: 119619.8448 | E23: 12.42 | F23: 128085.3809 | G23: 13.82 | H23: 136946.9029
B24: 4960 | C24: 11.75 | D24: 125388.3959 | E24: 13.25 | F24: 134228.5133 | G24: 14.75 | H24: 143593.0444
B25: 5260 | C25: 12.48 | D25: 131167.6494 | E25: 14.08 | F25: 140435.8596 | G25: 15.67 | H25: 150228.4836
B26: 5560 | C26: 13.22 | D26: 136946.9029 | E26: 14.9 | F26: 146643.206 | G26: 16.59 | H26: 156863.9228
A27: 1660 | B27: 1660 | C27: 4.59 | D27: 68152.38181 | E27: 5.17 | F27: 72690.16603 | G27: 5.76 | H27: 77763.06631
B28: 1960 | C28: 5.51 | D28: 74466.75136 | E28: 6.21 | F28: 79496.84235 | G28: 6.91 | H28: 84922.91924
B29: 2260 | C29: 6.43 | D29: 80759.71626 | E29: 7.25 | F29: 86164.3885 | G29: 8.06 | H29: 92082.77216
B30: 2560 | C30: 7.34 | D30: 87074.08581 | E30: 8.28 | F30: 92906.8509 | G30: 9.22 | H30: 95914.20317
B31: 2860 | C31: 8.26 | D31: 93377.75303 | E31: 9.31 | F31: 99638.61097 | G31: 10.37 | H31: 106423.8827
B32: 3160 | C32: 9.18 | D32: 99692.12258 | E32: 10.35 | F32: 106370.371 | G32: 11.52 | H32: 113583.7356
B33: 3460 | C33: 10.1 | D33: 105995.7898 | E33: 11.39 | F33: 113123.5358 | G33: 12.67 | H33: 120764.9932
B34: 3760 | C34: 11.02 | D34: 112310.1594 | E34: 12.42 | F34: 119855.2958 | G34: 13.82 | H34: 127924.8461
B35: 4060 | C35: 11.93 | D35: 118624.5289 | E35: 13.46 | F35: 126597.7582 | G35: 14.98 | H35: 135106.1036
B36: 4360 | C36: 12.85 | D36: 124917.4938 | E36: 14.49 | F36: 133329.5183 | G36: 16.13 | H36: 142265.9566
B37: 4660 | C37: 13.77 | D37: 131231.8633 | E37: 15.53 | F37: 140071.9807 | G37: 17.28 | H37: 149425.8095
B38: 4960 | C38: 14.69 | D38: 137535.5306 | E38: 16.56 | F38: 146803.7408 | G38: 18.43 | H38: 153845.8682
B39: 5260 | C39: 15.61 | D39: 143849.9001 | E39: 17.59 | F39: 153546.2032 | G39: 19.58 | H39: 156607.0671
B40: 5560 | C40: 16.52 | D40: 150153.5673 | E40: 18.63 | F40: 160277.9633 | G40: 20.74 | H40: 160074.6192
A41: 1960 | B41: 1960 | C41: 6.61 | E41: 7.45 | F41: 86699.50457 | G41: 8.29 | H41: 88936.28971
B42: 2260 | C42: 7.71 | E42: 8.69 | F42: 93966.3807 | G42: 9.68 | H42: 100323.5595
B43: 2560 | C43: 8.81 | E43: 9.94 | F43: 101243.9592 | G43: 11.06 | H43: 108029.2308
B44: 2860 | C44: 9.91 | D44: 101098.0913 | E44: 11.18 | F44: 108500.133 | G44: 12.44 | H44: 115713.4975
B45: 3160 | C45: 11.02 | E45: 12.42 | F45: 115809.8184 | G45: 13.82 | H45: 123419.1688
B46: 3460 | C46: 12.12 | D46: 115499.4511 | E46: 13.66 | F46: 123055.2899 | G46: 15.21 | H46: 131114.1378
B47: 3760 | C47: 13.22 | D47: 122338.2344 | E47: 14.9 | F47: 130311.4637 | G47: 16.59 | H47: 138819.8091
B48: 4060 | C48: 14.32 | D48: 129177.0177 | E48: 16.15 | F48: 137589.0422 | G48: 17.97 | H48: 146514.7781
B49: 4360 | C49: 15.42 | D49: 136015.801 | E49: 17.39 | F49: 144845.216 | G49: 19.35 | H49: 150185.6743
B50: 4660 | C50: 16.52 | D50: 142854.5842 | E50: 18.63 | F50: 149993.0325 | G50: 20.74 | H50: 151758.9155
B51: 4960 | C51: 17.63 | D51: 149693.3675 | E51: 19.87 | F51: 152122.7945 | G51: 22.12 | H51: 155108.7421
B52: 5260 | C52: 18.73 | D52: 156532.1508 | E52: 21.11 | F52: 154958.9096 | G52: 23.5 | H52: 159582.3124
B53: 5560 | C53: 19.83 | D53: 163370.9341 | E53: 22.36 | F53: 156542.8531 | G53: 24.88 | H53: 166506.7142
A54: 2260 | B54: 2260 | C54: 9 | D54: 95507.51497 | E54: 10.14 | F54: 101757.6706 | G54: 11.29 | H54: 104358.3347
B55: 2560 | C55: 10.28 | D55: 102881.4143 | E55: 11.59 | F55: 109559.6628 | G55: 12.9 | H55: 116773.0273
B56: 2860 | C56: 11.57 | D56: 110255.3137 | E56: 13.04 | F56: 117361.655 | G56: 14.52 | H56: 125013.8147
B57: 3160 | C57: 12.85 | D57: 117629.213 | E57: 14.49 | F57: 125163.6472 | G57: 16.13 | H57: 133243.8997
B58: 3460 | C58: 14.14 | D58: 124981.7077 | E58: 15.94 | F58: 132976.3417 | G58: 17.74 | H58: 141473.9848
B59: 3760 | C59: 15.42 | D59: 132355.6071 | E59: 17.39 | F59: 139547.567 | G59: 19.35 | H59: 144770.2997
B60: 4060 | C60: 16.71 | D60: 139729.5064 | E60: 18.84 | F60: 144877.323 | G60: 20.97 | H60: 145829.8296
B61: 4360 | C61: 17.99 | D61: 147103.4058 | E61: 20.29 | F61: 147766.9497 | G61: 22.58 | H61: 149543.535
B62: 4660 | C62: 19.28 | D62: 149511.4281 | E62: 21.73 | F62: 149800.3907 | G62: 24.19 | H62: 156949.5413
B63: 4960 | C63: 20.56 | D63: 152294.0316 | E63: 23.18 | F63: 154776.9701 | G63: 25.8 | H63: 164355.5477
B64: 5260 | C64: 21.85 | D64: 154252.5564 | E64: 24.63 | F64: 161797.6929 | G64: 27.42 | H64: 171761.554
B65: 5560 | C65: 23.13 | D65: 158929.4708 | E65: 26.08 | F65: 168807.7133 | G65: 29.03 | H65: 179178.2626
A66: 2560 | B66: 2560 | C66: 11.75 | E66: 13.25 | F66: 112973.7033 | G66: 14.75 | H66: 119395.096
B67: 2860 | C67: 13.22 | D67: 118678.0405 | E67: 14.9 | F67: 126223.177 | G67: 16.59 | H67: 134303.4296
B68: 3160 | C68: 14.69 | D68: 126587.0559 | E68: 16.56 | F68: 134560.2853 | G68: 18.43 | H68: 139376.3298
B69: 3460 | C69: 16.16 | D69: 134485.369 | E69: 18.22 | F69: 142897.3935 | G69: 20.28 | H69: 141570.3057
B70: 3760 | C70: 17.63 | D70: 142383.6821 | E70: 19.87 | F70: 148762.2656 | G70: 22.12 | H70: 144524.1464
B71: 4060 | C71: 19.09 | D71: 144748.8951 | E71: 21.53 | F71: 150988.3484 | G71: 23.96 | H71: 152422.4595
B72: 4360 | C72: 20.56 | D72: 149490.0234 | E72: 23.18 | F72: 153567.6078 | G72: 25.8 | H72: 160299.3679
B73: 4660 | C73: 22.03 | D73: 151416.4413 | E73: 24.84 | F73: 158597.6988 | G73: 27.65 | H73: 168186.9787
B74: 4960 | C74: 23.5 | D74: 156585.6624 | E74: 26.5 | F74: 166100.026 | G74: 29.49 | H74: 176063.8871
B75: 5260 | C75: 24.97 | D75: 163702.7061 | E75: 28.15 | F75: 173602.3532 | G75: 31.33 | H75: 183951.4979
B76: 5560 | C76: 26.44 | D76: 170819.7497 | E76: 29.81 | F76: 181093.9781 | G76: 33.18 | H76: 191839.1087
A77: 2860 | B77: 2860 | C77: 14.87 | D77: 136763.8932 | E77: 16.767 | F77: 144744.6142 | G77: =(B77/1000-0.16)*2.56*2.7 -> 18.6624 | H77: 153244.3977
B78: 3160 | C78: 16.52 | D78: 146209.762 | E78: 18.63 | F78: 154619.646 | G78: 20.736 | H78: 147194.3755
B79: 3460 | C79: 18.18 | D79: 155655.6307 | E79: 20.493 | F79: 148045.2101 | G79: 22.8096 | H79: 156467.9369
B80: 3760 | C80: 19.83 | D80: 165101.4995 | E80: 22.356 | F80: 156933.4879 | G80: 24.8832 | H80: 165742.5685
B81: 4060 | C81: 21.48 | D81: 157091.8822 | E81: 24.219 | F81: 165820.6954 | G81: 26.9568 | H81: 175016.1299
B82: 4360 | C82: 23.13 | D82: 165592.736 | E82: 26.082 | F82: 174707.903 | G82: 29.0304 | H82: 184290.7615
B83: 4660 | C83: 24.79 | D83: 174094.66 | E83: 27.945 | F83: 183596.1808 | G83: 31.104 | H83: 193564.3229
B84: 4960 | C84: 26.44 | D84: 182595.5138 | E84: 29.808 | F84: 192483.3884 | G84: 33.1776 | H84: 202838.9545
B85: 5260 | C85: 28.09 | D85: 191096.3676 | E85: 31.671 | F85: 201370.596 | G85: 35.2512 | H85: 212112.5158
B86: 5560 | C86: 29.74 | D86: 199597.2214 | E86: 33.534 | F86: 210258.8738 | G86: 37.3248 | H86: 221387.1474
A87: 3160 | B87: 3160 | C87: 18.36 | D87: 156292.4188 | E87: 20.7 | F87: 148640.2591 | G87: =(B87/1000-0.16)*2.56*3 -> 23.04 | H87: 157041.5813
B88: 3460 | C88: 20.2 | D88: 149738.3173 | E88: 22.77 | F88: 158079.7065 | G88: 25.344 | H88: 166889.8573
B89: 3760 | C89: 22.03 | D89: 158812.8155 | E89: 24.84 | F89: 167541.6287 | G89: 27.648 | H89: 176737.0631
B90: 4060 | C90: 23.87 | D90: 167887.3137 | E90: 26.91 | F90: 177002.4807 | G90: 29.952 | H90: 186585.3392
B91: 4360 | C91: 25.7 | D91: 176961.8119 | E91: 28.98 | F91: 186463.3327 | G91: 32.256 | H91: 196432.545
B92: 4660 | C92: 27.54 | D92: 186037.3803 | E92: 31.05 | F92: 195925.2549 | G92: 34.56 | H92: 206280.821
B93: 4960 | C93: 29.38 | D93: 195111.8785 | E93: 33.12 | F93: 205386.1069 | G93: 36.864 | H93: 216128.0268
B94: 5260 | C94: 31.21 | D94: 204186.3767 | E94: 35.19 | F94: 214846.9589 | G94: 39.168 | H94: 225975.2326
B95: 5560 | C95: 33.05 | D95: 213260.8749 | E95: 37.26 | F95: 224308.8812 | G95: 41.472 | H95: 235823.5086
A96: 3460 | B96: 3460 | C96: =(B96/1000-0.16)*2.04*3.3 -> 22.2156 | D96: 159386.4599 | E96: 25.047 | F96: 168115.2731 | G96: =(B96/1000-0.16)*2.56*3.3 -> 27.8784 | H96: 177310.7076
B97: 3760 | C97: =(B97/1000-0.16)*2.04*3.3 -> 24.2352 | D97: 169034.6025 | E97: 27.324 | F97: 178149.7695 | G97: 30.4128 | H97: 187732.628
B98: 4060 | C98: 26.2548 | D98: 178682.7451 | E98: 29.601 | F98: 188184.266 | G98: 32.9472 | H98: 198153.4782
B99: 4360 | C99: 28.2744 | D99: 188330.8878 | E99: 31.878 | F99: 198219.8326 | G99: 35.4816 | H99: 208574.3284
B100: 4660 | C100: 30.294 | D100: 197980.1006 | E100: 34.155 | F100: 208254.329 | G100: 38.016 | H100: 218996.2489
B101: 4960 | C101: 32.3136 | D101: 207628.2432 | E101: 36.432 | F101: 218288.8254 | G101: 40.5504 | H101: 229417.0991
B102: 5260 | C102: 34.3332 | D102: 217276.3859 | E102: 38.709 | F102: 228323.3219 | G102: 43.0848 | H102: 239839.0195
B103: 5560 | C103: 36.3528 | D103: 226924.5285 | E103: 40.986 | F103: 238358.8885 | G103: 45.6192 | H103: 250259.8698
A104: 3760 | B104: 3760 | C104: =(B104/1000-0.16)*2.04*3.6 -> 26.4384 | D104: 179256.3896 | E104: 29.808 | F104: 188757.9104 | G104: =(B104/1000-0.16)*2.56*3.6 -> 33.1776 | H104: 198727.1226
B105: 4060 | C105: =(B105/1000-0.16)*2.04*3.6 -> 28.6416 | D105: 189478.1766 | E105: 32.292 | F105: 199367.1214 | G105: 35.9424 | H105: 209721.6173
B106: 4360 | C106: 30.8448 | D106: 199701.0339 | E106: 34.776 | F106: 209975.2623 | G106: 38.7072 | H106: 220717.1821
B107: 4660 | C107: 33.048 | D107: 209922.8209 | E107: 37.26 | F107: 220583.4031 | G107: 41.472 | H107: 231711.6768
B108: 4960 | C108: 35.2512 | D108: 220144.608 | E108: 39.744 | F108: 231191.544 | G108: 44.2368 | H108: 242707.2416
B109: 5260 | C109: 37.4544 | D109: 230366.395 | E109: 42.228 | F109: 241800.755 | G109: 47.0016 | H109: 253701.7363
B110: 5560 | C110: 39.6576 | D110: 240588.182 | E110: 44.712 | F110: 252408.8959 | G110: 49.7664 | H110: 264696.2309
A111: 4060 | B111: 4060 | C111: =(B111/1000-0.16)*2.04*3.9 -> 31.0284 | D111: 200274.6783 | E111: 34.983 | F111: 210548.9067 | G111: =(B111/1000-0.16)*2.56*3.9 -> 38.9376 | H111: 221290.8266
B112: 4360 | C112: 33.4152 | D112: 211070.1098 | E112: 37.674 | F112: 221730.692 | G112: 41.9328 | H112: 232858.9656
B113: 4660 | C113: 35.802 | D113: 221865.5412 | E113: 40.365 | F113: 232912.4772 | G113: 44.928 | H113: 244428.1749
B114: 4960 | C114: 38.1888 | D114: 233196.0887 | E114: 43.056 | F114: 244094.2625 | G114: 47.9232 | H114: 255996.314
B115: 5260 | C115: 40.5756 | D115: 243456.4041 | E115: 45.747 | F115: 255063.0715 | G115: 50.9184 | H115: 267564.453
B116: 5560 | C116: 42.9624 | D116: 254251.8356 | E116: 48.438 | F116: 266458.9032 | G116: 53.9136 | H116: 279133.6623
A117: 4360 | B117: 4360 | C117: =(B117/1000-0.16)*2.04*4.2 -> 35.9856 | D117: 222546.2088 | E117: 40.572 | F117: 233486.1216 | G117: =(B117/1000-0.16)*2.56*4.2 -> 45.1584 | H117: 245001.8193
B118: 4660 | C118: =(B118/1000-0.16)*2.04*4.2 -> 38.556 | D118: 233808.2615 | E118: 43.47 | F118: 245241.5513 | G118: =(B118/1000-0.16)*2.56*4.2 -> 48.384 | H118: 257143.6028
B119: 4960 | C119: =(B119/1000-0.16)*2.04*4.2 -> 41.1264 | D119: 245177.3374 | E119: 46.368 | F119: 256998.0512 | G119: =(B119/1000-0.16)*2.56*4.2 -> 51.6096 | H119: 269285.3863
B120: 5260 | C120: =(B120/1000-0.16)*2.04*4.2 -> 43.6968 | D120: 256546.4133 | E120: 49.266 | F120: 268753.4809 | G120: =(B120/1000-0.16)*2.56*4.2 -> 54.8352 | H120: 281428.24
B121: 5560 | C121: =(B121/1000-0.16)*2.04*4.2 -> 46.2672 | D121: 267915.4891 | E121: 52.164 | F121: 280508.9106 | G121: =(B121/1000-0.16)*2.56*4.2 -> 58.0608 | H121: 293570.0235
A122: 4660 | B122: 4660 | C122: =(B122/1000-0.16)*2.04*4.5 -> 41.31 | D122: 245750.9818 | E122: 46.575 | F122: 257571.6956 | G122: =(B122/1000-0.16)*2.56*4.5 -> 51.84 | H122: 269859.0307
B123: 4960 | C123: =(B123/1000-0.16)*2.04*4.5 -> 44.064 | D123: 257693.7021 | E123: 49.68 | F123: 269900.7697 | G123: =(B123/1000-0.16)*2.56*4.5 -> 55.296 | H123: 282575.5288
B124: 5260 | C124: =(B124/1000-0.16)*2.04*4.5 -> 46.818 | D124: 269636.4224 | E124: 52.785 | F124: 282229.8438 | G124: =(B124/1000-0.16)*2.56*4.5 -> 58.752 | H124: 295290.9567
B125: 5560 | C125: =(B125/1000-0.16)*2.04*4.5 -> 49.572 | D125: 281579.1427 | E125: 55.89 | F125: 294558.9179 | G125: =(B125/1000-0.16)*2.56*4.5 -> 62.208 | H125: 308006.3846
A126: 4960 | B126: 4960 | C126: =(B126/1000-0.16)*2.04*4.8 -> 47.0016 | D126: 270210.0668 | E126: 52.992 | F126: 282803.4883 | G126: =(B126/1000-0.16)*2.56*4.8 -> 58.9824 | H126: 295864.6011
B127: 5260 | C127: =(B127/1000-0.16)*2.04*4.8 -> 49.9392 | D127: 282726.4315 | E127: 56.304 | F127: 295706.2068 | G127: =(B127/1000-0.16)*2.56*4.8 -> 62.6688 | H127: 309153.6734
B128: 5560 | C128: =(B128/1000-0.16)*2.04*4.8 -> 52.8768 | D128: 295242.7963 | E128: 59.616 | F128: 308608.9253 | G128: =(B128/1000-0.16)*2.56*4.8 -> 66.3552 | H128: 322442.7458
A129: 5260 | B129: 5260 | C129: =(B129/1000-0.16)*2.04*5.1 -> 53.0604 | D129: 295816.4407 | E129: 59.823 | F129: 309182.5697 | G129: =(B129/1000-0.16)*2.56*5.1 -> 66.5856 | H129: 323016.3902
B130: 5560 | C130: =(B130/1000-0.16)*2.04*5.1 -> 56.1816 | D130: 308906.4498 | E130: 63.342 | F130: 322658.9326 | G130: =(B130/1000-0.16)*2.56*5.1 -> 70.5024 | H130: 336880.1771
A131: 5560 | B131: 5560 | C131: 59.47 | D131: 322570.1034 | E131: 67.07 | F131: 336710.0102 | G131: 74.65 | H131: 351316.5383
A132: Цены на оборудование ТМ «POLAIR», указанные в настоящем прайс-листе являются рекомендованными и могут отличаться от розничных цен у наших дилеров и региональных представителей.
A135: * - цены на камеры с комплектацией панелей, отличной от стандартных складских позиций

Sheet Камеры-Professionale 100
I2: 2018-05-03
A4: Сборно-разборные холодильные камеры из сендвич-панелей с соединением ШИП-ПАЗ из жесткого ПВХ
I7: толщина панели 100 мм
A8: ПРАЙС-ЛИСТ - КАМЕРЫ POLAIR Professionale (100мм) ИЗ СТАНДАРТНЫХ ПАНЕЛЕЙ
A10: Базовые цены с учетом НДС
A11: Внешние габариты | C11: Высота 2 240 мм | F11: Высота 2 500 мм | I11: Высота 2 760 мм
A12: Длина | B12: Ширина | C12: объём, м3 | D12: Цена, Руб. | E12: Цена, Руб | F12: объём, м3 | G12: Цена, Руб. | H12: Цена, Руб | I12: объём, м3 | J12: Цена, Руб.
A13: 1400 | B13: 1400 | C13: 2.94 | D13: 64427.97401 | E13: =N13*1.15 -> 0 | F13: 3.31 | G13: 68837.33037 | H13: =O13*1.15 -> 0 | I13: 3.69 | J13: 74049.36083
B14: 1700 | C14: 3.67 | D14: 71405.88748 | E14: =N14*1.15 -> 0 | F14: 4.14 | G14: 76307.55062 | H14: =O14*1.15 -> 0 | I14: 4.61 | J14: 81990.48321
B15: 2000 | C15: 4.41 | D15: 78394.50326 | E15: =N15*1.15 -> 0 | F15: 4.97 | G15: 83767.06854 | H15: 0 | I15: 5.53 | J15: 87256.02527
B16: 2300 | C16: 5.14 | D16: 85372.41673 | E16: 0 | F16: 5.8 | G16: 91226.58646 | H16: 0 | I16: 6.45 | J16: 94159.02249
B17: 2600 | C17: 5.88 | D17: 89557.02434 | E17: 0 | F17: 6.62 | G17: 95346.98015 | H17: 0 | I17: 7.37 | J17: 101062.0197
B18: 2900 | C18: 6.61 | D18: 99349.6483 | E18: 0 | F18: 7.45 | G18: 106156.3246 | H18: 0 | I18: 8.29 | J18: 113754.9727
B19: 3200 | C19: 7.34 | D19: 106327.5618 | E19: 0 | F19: 8.28 | G19: 113615.8425 | H19: 0 | I19: 9.22 | J19: 121696.0951
B20: 3500 | C20: 8.08 | D20: 113316.1776 | E20: 0 | F20: 9.11 | G20: 121086.0628 | H20: 0 | I20: 10.14 | J20: 129647.9198
B21: 3800 | C21: 8.81 | D21: 120304.7933 | E21: 0 | F21: 9.94 | G21: 128545.5807 | H21: 0 | I21: 11.06 | J21: 137589.0422
B22: 4100 | C22: 9.55 | D22: 127282.7068 | E22: 0 | F22: 10.76 | G22: 136005.0986 | H22: 0 | I22: 11.98 | J22: 145519.4622
B23: 4400 | C23: 10.28 | D23: 134271.3226 | E23: 0 | F23: 11.59 | G23: 143475.3189 | H23: 0 | I23: 12.9 | J23: 153460.5846
B24: 4700 | C24: 11.02 | D24: 141259.9384 | E24: 0 | F24: 12.42 | G24: 150934.8368 | H24: 0 | I24: 13.82 | J24: 161412.4093
B25: 5000 | C25: 11.75 | D25: 148237.8518 | E25: 0 | F25: 13.25 | G25: 158394.3547 | H25: 0 | I25: 14.75 | J25: 169353.5317
B26: 5300 | C26: 12.48 | D26: 155226.4676 | E26: 0 | F26: 14.08 | G26: 165864.575 | H26: 0 | I26: 15.67 | J26: 177294.6541
B27: 5600 | C27: 13.22 | D27: 162215.0834 | E27: 0 | F27: 14.9 | G27: 173324.0929 | H27: 0 | I27: 16.59 | J27: 179745.4856
A28: 1700 | B28: 1700 | C28: 4.59 | D28: 79090.15415 | E28: 0 | F28: 5.17 | G28: 84462.71942 | H28: 0 | I28: 5.76 | J28: 87684.11812
B29: 2000 | C29: 5.51 | D29: 86763.71849 | E29: 0 | F29: 6.21 | G29: 89845.98702 | H29: 0 | I29: 6.91 | J29: 95122.2314
B30: 2300 | C30: 6.43 | D30: 91033.94468 | E30: 0 | F30: 7.25 | G30: 96823.90048 | H30: 0 | I30: 8.06 | J30: 102538.94
B31: 2600 | C31: 7.34 | D31: 97573.06297 | E31: 0 | F31: 8.28 | G31: 103812.5163 | H31: 0 | I31: 9.22 | J31: 109955.6487
B32: 2900 | C32: 8.26 | D32: 109795.1139 | E32: 0 | F32: 9.31 | G32: 117083.3946 | H32: 0 | I32: 10.37 | J32: 125163.6472
B33: 3200 | C33: 9.18 | D33: 117468.6782 | E33: =N33*1.15 -> 0 | F33: 10.35 | G33: 125238.5634 | H33: 0 | I33: 11.52 | J33: 133800.4205
B34: 3500 | C34: 10.1 | D34: 125152.9449 | E34: 0 | F34: 11.39 | G34: 133393.7322 | H34: 0 | I34: 12.67 | J34: 142426.4914
B35: 3800 | C35: 11.02 | D35: 132826.5092 | E35: 0 | F35: 12.42 | G35: 141548.901 | H35: 0 | I35: 13.82 | J35: 151063.2647
B36: 4100 | C36: 11.93 | D36: 140500.0736 | E36: =N36*1.15 -> 0 | F36: 13.46 | G36: 149704.0699 | H36: 0 | I36: 14.98 | J36: 159700.0379
B37: 4400 | C37: 12.85 | D37: 148184.3402 | E37: 0 | F37: 14.49 | G37: 157859.2387 | H37: 0 | I37: 16.13 | J37: 168336.8112
B38: 4700 | C38: 13.77 | D38: 155857.9046 | E38: 0 | F38: 15.53 | G38: 166014.4075 | H38: 0 | I38: 17.28 | J38: 171611.7215
B39: 5000 | C39: 14.69 | D39: 163542.1712 | E39: 0 | F39: 16.56 | G39: 174169.5763 | H39: 0 | I39: 18.43 | J39: 179638.4624
B40: 5300 | C40: 15.61 | D40: 171215.7356 | E40: 0 | F40: 17.59 | G40: 182324.7451 | H40: 0 | I40: 19.58 | J40: 187686.608
B41: 5600 | C41: 16.52 | D41: 178889.2999 | E41: 0 | F41: 18.63 | G41: 190479.9139 | H41: 0 | I41: 20.74 | J41: 195713.349
A42: 2000 | B42: 2000 | C42: 6.61 | D42: 91462.03753 | E42: 0 | F42: 7.45 | G42: 97273.39797 | H42: 0 | I42: 8.29 | J42: 102988.4375
B43: 2300 | C43: 7.71 | D43: 98514.86724 | E43: 0 | F43: 8.69 | G43: 104765.0229 | H43: 0 | I43: 9.68 | J43: 110918.8576
B44: 2600 | C44: 8.81 | D44: 105567.697 | E44: 0 | F44: 9.94 | G44: 112256.6477 | H44: 0 | I44: 11.06 | J44: 118849.2776
B45: 2900 | C45: 9.91 | D45: 120240.5794 | E45: 0 | F45: 11.18 | G45: 128010.4646 | H45: 0 | I45: 12.44 | J45: 136572.3217
B46: 3200 | C46: 11.02 | D46: 128609.7946 | E46: =N46*1.15 -> 0 | F46: 12.42 | G46: 136861.2843 | H46: 0 | I46: 13.82 | J46: 145894.0435
B47: 3500 | C47: 12.12 | D47: 136979.0099 | E47: 0 | F47: 13.66 | G47: 145701.4017 | H47: 0 | I47: 15.21 | J47: 155226.4676
B48: 3800 | C48: 13.22 | D48: 145348.2251 | E48: 0 | F48: 14.9 | G48: 154552.2214 | H48: 0 | I48: 16.59 | J48: 164548.1894
B49: 4100 | C49: 14.32 | D49: 153728.1426 | E49: 0 | F49: 16.15 | G49: 163403.0411 | H49: 0 | I49: 17.97 | J49: 168422.4297
B50: 4400 | C50: 15.42 | D50: 162097.3579 | E50: 0 | F50: 17.39 | G50: 172253.8608 | H50: 0 | I50: 19.35 | J50: 177069.9053
B51: 4700 | C51: 16.52 | D51: 170466.5731 | E51: 0 | F51: 18.63 | G51: 181093.9781 | H51: 0 | I51: 20.74 | J51: 185717.3809
B52: 5000 | C52: 17.63 | D52: 178835.7883 | E52: 0 | F52: 19.87 | G52: 184229.7583 | H52: 0 | I52: 22.12 | J52: 194386.2611
B53: 5300 | C53: 18.73 | D53: 187205.0036 | E53: 0 | F53: 21.11 | G53: 192449.141 | H53: 0 | I53: 23.5 | J53: 203033.7367
B54: 5600 | C54: 19.83 | D54: 189538.1096 | E54: 0 | F54: 22.36 | G54: 200657.8214 | H54: 0 | I54: 24.88 | J54: 211691.9146
A55: 2300 | B55: 2300 | C55: 9 | D55: 106413.1803 | E55: 0 | F55: 10.14 | G55: 113102.1311 | H55: 0 | I55: 11.29 | J55: 119694.761
B56: 2600 | C56: 10.28 | D56: 114033.2331 | E56: 0 | F56: 11.59 | G56: 121150.2767 | H56: 0 | I56: 12.9 | J56: 128213.8088
B57: 2900 | C57: 11.57 | D57: 130686.045 | E57: 0 | F57: 13.04 | G57: 138937.5347 | H57: 0 | I57: 14.52 | J57: 147970.2938
B58: 3200 | C58: 12.85 | D58: 139750.9111 | E58: 0 | F58: 14.49 | G58: 148473.3029 | H58: 0 | I58: 16.13 | J58: 157987.6665
B59: 3500 | C59: 14.14 | D59: 148815.7772 | E59: 0 | F59: 15.94 | G59: 158019.7735 | H59: 0 | I59: 17.74 | J59: 168015.7415
B60: 3800 | C60: 15.42 | D60: 157880.6433 | E60: 0 | F60: 17.39 | G60: 167555.5417 | H60: 0 | I60: 19.35 | J60: 172821.0838
B61: 4100 | C61: 16.71 | D61: 166945.5094 | E61: 0 | F61: 18.84 | G61: 177102.0123 | H61: 0 | I61: 20.97 | J61: 182164.2102
B62: 4400 | C62: 17.99 | D62: 175999.6732 | E62: 0 | F62: 20.29 | G62: 186637.7805 | H62: 0 | I62: 22.58 | J62: 191485.9321
B63: 4700 | C63: 19.28 | D63: 185064.5393 | E63: 0 | F63: 21.73 | G63: 196184.2511 | H63: 0 | I63: 24.19 | J63: 200818.3562
B64: 5000 | C64: 20.56 | D64: 194129.4054 | E64: =N64*1.15 -> 0 | F64: 23.18 | G64: 199566.1846 | H64: 0 | I64: 25.8 | J64: 210161.4827
B65: 5300 | C65: 21.85 | D65: 203194.2715 | E65: 0 | F65: 24.63 | G65: 208449.1113 | H65: 0 | I65: 27.42 | J65: 219483.2045
B66: 5600 | C66: 23.13 | D66: 205784.2333 | E66: 0 | F66: 26.08 | G66: 217342.7402 | H66: 0 | I66: 29.03 | J66: 228826.331
A67: 2600 | B67: 2600 | C67: 11.75 | D67: 122038.5694 | E67: 0 | F67: 13.25 | G67: 129615.8128 | H67: 0 | I67: 14.75 | J67: 137086.0331
B68: 2900 | C68: 13.22 | D68: 141142.2128 | E68: 0 | F68: 14.9 | G68: 149864.6047 | H68: 0 | I68: 16.59 | J68: 159378.9683
B69: 3200 | C69: 14.69 | D69: 150892.0275 | E69: 0 | F69: 16.56 | G69: 160096.0238 | H69: 0 | I69: 18.43 | J69: 170091.9919
B70: 3500 | C70: 16.16 | D70: 160652.5445 | E70: 0 | F70: 18.22 | G70: 170327.4429 | H70: 0 | I70: 20.28 | J70: 175143.4875
B71: 3800 | C71: 17.63 | D71: 170402.3592 | E71: 0 | F71: 19.87 | G71: 180558.8621 | H71: 0 | I71: 22.12 | J71: 185096.6463
B72: 4100 | C72: 19.09 | D72: 180162.8762 | E72: 0 | F72: 21.53 | G72: 190790.2812 | H72: 0 | I72: 23.96 | J72: 195039.1027
B73: 4400 | C73: 20.56 | D73: 189912.6908 | E73: =N73*1.15 -> 0 | F73: 23.18 | G73: 194846.4609 | H73: 0 | I73: 25.8 | J73: 204981.5592
B74: 4700 | C74: 22.03 | D74: 193679.9079 | E74: 0 | F74: 24.84 | G74: 204350.1222 | H74: 0 | I74: 27.65 | J74: 214934.718
B75: 5000 | C75: 23.5 | D75: 202734.0717 | E75: 0 | F75: 26.5 | G75: 213853.7835 | H75: 0 | I75: 29.49 | J75: 224887.8767
B76: 5300 | C76: 24.97 | D76: 211809.6401 | E76: 0 | F76: 28.15 | G76: 223368.1471 | H76: 0 | I76: 31.33 | J76: 234841.0355
B77: 5600 | C77: 26.44 | D77: 220863.8039 | E77: 0 | F77: 29.81 | G77: 232871.8084 | H77: =O77*1.15 -> 0 | I77: 33.18 | J77: 244783.492
A78: 2900 | B78: 2900 | C78: =(B78/1000-0.2)*2.04*2.7 -> 14.8716 | D78: 151586.6082 | E78: =(B78/1000-0.2)*2.3*2.7 -> 16.767 | F78: 16.767 | G78: 160787.3938 | H78: 170745.25 | I78: =(B78/1000-0.2)*2.56*2.7 -> 18.6624 | J78: 170782.2916
B79: 3200 | C79: =(B79/1000-0.2)*2.04*2.7 -> 16.524 | D79: 162035.2844 | E79: =(B79/1000-0.2)*2.3*2.7 -> 18.63 | F79: 18.63 | G79: 171713.3935 | H79: 182147.17 | I79: 20.736 | J79: 182186.6851
B80: 3500 | C80: 18.1764 | D80: 172482.8904 | E80: 20.493 | F80: 20.493 | G80: 182639.3933 | H80: 193549.09 | I80: 22.8096 | J80: 193591.0787
B81: 3800 | C81: 19.8288 | D81: 182930.4964 | E81: 22.356 | F81: 22.356 | G81: 193461.5806 | H81: 204951.01 | I81: 24.8832 | J81: 204995.4722
B82: 4100 | C82: 21.4812 | D82: 193378.1025 | E82: 24.219 | F82: 24.219 | G82: 204491.3929 | H82: 216352.93 | I82: 26.9568 | J82: 216399.8657
B83: 4400 | C83: 23.1336 | D83: 203826.7787 | E83: 26.082 | F83: 26.082 | G83: 215313.5801 | H83: 227754.85 | I83: 29.0304 | J83: 227804.2593
B84: 4700 | C84: 24.786 | D84: 214274.3847 | E84: 27.945 | F84: 27.945 | G84: 226343.3924 | H84: 239156.77 | I84: 31.104 | J84: 239208.6528
B85: 5000 | C85: 26.4384 | D85: 224721.9908 | E85: 29.808 | F85: 29.808 | G85: 237270.4624 | H85: 250558.69 | I85: 33.1776 | J85: 250613.0464
B86: 5300 | C86: 28.0908 | D86: 235169.5968 | E86: 31.671 | F86: 31.671 | G86: 248196.4622 | H86: 261960.61 | I86: 35.2512 | J86: 262017.4399
B87: 5600 | C87: 29.7432 | D87: 245618.273 | E87: 33.534 | F87: 33.534 | G87: 259122.462 | H87: 273362.53 | I87: 37.3248 | J87: 273421.8334
A88: 3200 | B88: 3200 | C88: =(B88/1000-0.2)*2.04*3 -> 18.36 | D88: 180666.9555 | E88: =(B88/1000-0.2)*2.3*3 -> 20.7 | F88: 20.7 | G88: 183331.8335 | H88: 194241.38 | I88: =(B88/1000-0.2)*2.56*3.3 -> 25.344 | J88: 194283.5188
B89: 3500 | C89: =(B89/1000-0.2)*2.04*3 -> 20.196 | D89: 184315.3768 | E89: =(B89/1000-0.2)*2.3*3 -> 22.77 | F89: 22.77 | G89: 194950.2735 | H89: 206336.66 | I89: =(B89/1000-0.2)*2.56*3 -> 25.344 | J89: 206381.4228
B90: 3800 | C90: 22.032 | D90: 195456.4933 | E90: 24.84 | F90: 24.84 | G90: 206569.7837 | H90: 218430.87 | I90: 27.648 | J90: 218478.2565
B91: 4100 | C91: 23.868 | D91: 206596.5395 | E91: 26.91 | F91: 26.91 | G91: 218188.2236 | H91: 230525.08 | I91: 29.952 | J91: 230575.0903
B92: 4400 | C92: 25.704 | D92: 217737.6559 | E92: 28.98 | F92: 28.98 | G92: 229806.6636 | H92: 242619.29 | I92: 32.256 | J92: 242671.924
B93: 4700 | C93: 27.54 | D93: 228877.7021 | E93: 31.05 | F93: 31.05 | G93: 241426.1738 | H93: 254713.5 | I93: 34.56 | J93: 254768.7577
B94: 5000 | C94: 29.376 | D94: 240018.8185 | E94: 33.12 | F94: 33.12 | G94: 253044.6138 | H94: 266808.78 | I94: 36.864 | J94: 266866.6617
B95: 5300 | C95: 31.212 | D95: 251158.8647 | E95: 35.19 | F95: 35.19 | G95: 264663.0537 | H95: 278902.99 | I95: 39.168 | J95: 278963.4954
B96: 5600 | C96: 33.048 | D96: 262299.9812 | E96: 37.26 | F96: 37.26 | G96: 276282.5639 | H96: 290997.2 | I96: 41.472 | J96: 291060.3291
A97: 3500 | B97: 3500 | C97: =(B97/1000-0.2)*2.04*3.3 -> 22.2156 | D97: 196148.9334 | E97: =(B97/1000-0.2)*2.3*3.3 -> 25.047 | F97: 25.047 | G97: 207262.2238 | H97: 219123.16 | I97: =(B97/1000-0.2)*2.56*3.3 -> 27.8784 | J97: 219170.6967
B98: 3800 | C98: =(B98/1000-0.2)*2.04*3.3 -> 24.2352 | D98: 207982.4901 | E98: =(B98/1000-0.2)*2.3*3.3 -> 27.324 | F98: 27.324 | G98: 219573.104 | H98: 231909.66 | I98: 30.4128 | J98: 231959.9706
B99: 4100 | C99: 26.2548 | D99: 219814.9765 | E99: 29.601 | F99: 29.601 | G99: 231885.0544 | H99: 244697.23 | I99: 32.9472 | J99: 244750.3148
B100: 4400 | C100: 28.2744 | D100: 231648.5331 | E100: 31.878 | F100: 31.878 | G100: 244195.9345 | H100: 257483.73 | I100: 35.4816 | J100: 257539.5887
B101: 4700 | C101: 30.294 | D101: 243482.0897 | E101: 34.155 | F101: 34.155 | G101: 256507.8849 | H101: 270271.3 | I101: 38.016 | J101: 270329.9328
B102: 5000 | C102: 32.3136 | D102: 255314.5761 | E102: 36.432 | F102: 36.432 | G102: 268818.7651 | H102: 283057.8 | I102: 40.5504 | J102: 283119.2067
B103: 5300 | C103: 34.3332 | D103: 267148.1327 | E103: 38.709 | F103: 38.709 | G103: 281130.7154 | H103: 295844.3 | I103: 43.0848 | J103: 295908.4806
B104: 5600 | C104: 36.3528 | D104: 278981.6893 | E104: 40.986 | F104: 40.986 | G104: 293441.5956 | H104: 308631.87 | I104: 45.6192 | J104: 308698.8248
A105: 3800 | B105: 3800 | C105: =(B105/1000-0.2)*2.04*3.6 -> 26.4384 | D105: 220508.4869 | E105: =(B105/1000-0.2)*2.3*3.6 -> 29.808 | F105: 29.808 | G105: 232577.4946 | H105: 245389.52 | I105: =(B105/1000-0.2)*2.56*3.6 -> 33.1776 | J105: 245442.755
B106: 4100 | C106: =(B106/1000-0.2)*2.04*3.6 -> 28.6416 | D106: 233033.4134 | E106: =(B106/1000-0.2)*2.3*3.6 -> 32.292 | F106: 32.292 | G106: 245581.8851 | H106: 258869.38 | I106: 35.9424 | J106: 258925.5393
B107: 4400 | C107: 30.8448 | D107: 245559.4103 | E107: 34.776 | F107: 34.776 | G107: 258585.2055 | H107: 272348.17 | I107: 38.7072 | J107: 272407.2534
B108: 4700 | C108: 33.048 | D108: 258085.4071 | E108: 37.26 | F108: 37.26 | G108: 271589.596 | H108: 285828.03 | I108: 41.472 | J108: 285890.0377
B109: 5000 | C109: 35.2512 | D109: 270611.4039 | E109: 39.744 | F109: 39.744 | G109: 284593.9866 | H109: 299306.82 | I109: 44.2368 | J109: 299371.7518
B110: 5300 | C110: 37.4544 | D110: 283137.4007 | E110: 42.228 | F110: 42.228 | G110: 297597.3069 | H110: 312786.68 | I110: 47.0016 | J110: 312854.5361
B111: 5600 | C111: 39.6576 | D111: 295662.3273 | E111: 44.712 | F111: 44.712 | G111: 310601.6975 | H111: 326265.47 | I111: 49.7664 | J111: 326336.2502
A112: 4100 | B112: 4100 | C112: =(B112/1000-0.2)*2.04*3.9 -> 31.0284 | D112: 246251.8504 | E112: =(B112/1000-0.2)*2.3*3.9 -> 34.983 | F112: 34.983 | G112: 259278.7159 | H112: 273040.46 | I112: =(B112/1000-0.2)*2.56*3.9 -> 38.9376 | J112: 273099.6936
B113: 4400 | C113: 33.4152 | D113: 259470.2874 | E113: 37.674 | F113: 37.674 | G113: 272974.4764 | H113: 287212.61 | I113: 41.9328 | J113: 287274.9181
B114: 4700 | C114: 35.802 | D114: 272688.7244 | E114: 40.365 | F114: 40.365 | G114: 286671.3072 | H114: 301384.76 | I114: 44.928 | J114: 301450.1426
B115: 5000 | C115: 38.1888 | D115: 285907.1614 | E115: 43.056 | F115: 43.056 | G115: 300368.1379 | H115: 315555.84 | I115: 47.9232 | J115: 315624.2969
B116: 5300 | C116: 40.5756 | D116: 299125.5984 | E116: 45.747 | F116: 45.747 | G116: 314064.9687 | H116: 328829.19 | I116: 50.9184 | J116: 328900.5264
B117: 5600 | C117: 42.9624 | D117: 312344.0354 | E117: 48.438 | F117: 48.438 | G117: 327761.7994 | H117: 343900.14 | I117: 53.9136 | J117: 343974.7459
A118: 4400 | B118: 4400 | C118: =(B118/1000-0.2)*2.04*4.2 -> 35.9856 | D118: 273381.1646 | E118: =(B118/1000-0.2)*2.3*4.2 -> 40.572 | F118: 40.572 | G118: 287364.8176 | H118: 302077.05 | I118: =(B118/1000-0.2)*2.56*4.2 -> 45.1584 | J118: 302142.5828
B119: 4700 | C119: =(B119/1000-0.2)*2.04*4.2 -> 38.556 | D119: 287293.112 | E119: =(B119/1000-0.2)*2.3*4.2 -> 43.47 | F119: 43.47 | G119: 301754.0885 | H119: 316941.49 | I119: =(B119/1000-0.2)*2.56*4.2 -> 48.384 | J119: 317010.2475
B120: 5000 | C120: =(B120/1000-0.2)*2.04*4.2 -> 41.1264 | D120: 301203.9892 | E120: =(B120/1000-0.2)*2.3*4.2 -> 46.368 | F120: 46.368 | G120: 316143.3595 | H120: 331805.93 | I120: =(B120/1000-0.2)*2.56*4.2 -> 51.6096 | J120: 331877.9122
B121: 5300 | C121: =(B121/1000-0.2)*2.04*4.2 -> 43.6968 | D121: 315114.8664 | E121: =(B121/1000-0.2)*2.3*4.2 -> 49.266 | F121: 49.266 | G121: 330532.6304 | H121: 346670.37 | I121: =(B121/1000-0.2)*2.56*4.2 -> 54.8352 | J121: 346745.5769
B122: 5600 | C122: =(B122/1000-0.2)*2.04*4.2 -> 46.2672 | D122: 329025.7436 | E122: =(B122/1000-0.2)*2.3*4.2 -> 52.164 | F122: 52.164 | G122: 344921.9013 | H122: 361534.81 | I122: =(B122/1000-0.2)*2.56*4.2 -> 58.0608 | J122: 361613.2416
A123: 4700 | B123: 4700 | C123: =(B123/1000-0.2)*2.04*4.5 -> 41.31 | D123: 301896.4294 | E123: =(B123/1000-0.2)*2.3*4.5 -> 46.575 | F123: 46.575 | G123: 316835.7996 | H123: 332498.22 | I123: =(B123/1000-0.2)*2.56*4.5 -> 51.84 | J123: 332570.3524
B124: 5000 | C124: =(B124/1000-0.2)*2.04*4.5 -> 44.064 | D124: 316499.7468 | E124: =(B124/1000-0.2)*2.3*4.5 -> 49.68 | F124: 49.68 | G124: 331917.5108 | H124: 348054.95 | I124: =(B124/1000-0.2)*2.56*4.5 -> 55.296 | J124: 348130.4573
B125: 5300 | C125: =(B125/1000-0.2)*2.04*4.5 -> 46.818 | D125: 331104.1344 | E125: =(B125/1000-0.2)*2.3*4.5 -> 52.785 | F125: 52.785 | G125: 346999.2219 | H125: 363611.68 | I125: =(B125/1000-0.2)*2.56*4.5 -> 58.752 | J125: 363690.5621
B126: 5600 | C126: =(B126/1000-0.2)*2.04*4.5 -> 49.572 | D126: 345707.4517 | E126: =(B126/1000-0.2)*2.3*4.5 -> 55.89 | F126: 55.89 | G126: 362080.933 | H126: 379168.41 | I126: =(B126/1000-0.2)*2.56*4.5 -> 62.208 | J126: 379250.667
A127: 5000 | B127: 5000 | C127: =(B127/1000-0.2)*2.04*4.8 -> 47.0016 | D127: 331796.5745 | E127: =(B127/1000-0.2)*2.3*4.8 -> 52.992 | F127: 52.992 | G127: 347691.6621 | H127: 364271.87 | I127: =(B127/1000-0.2)*2.56*4.8 -> 58.9824 | J127: 364350.8954
B128: 5300 | C128: =(B128/1000-0.2)*2.04*4.8 -> 49.9392 | D128: 347092.3321 | E128: =(B128/1000-0.2)*2.3*4.8 -> 56.304 | F128: 56.304 | G128: 363466.8836 | H128: 380552.99 | I128: =(B128/1000-0.2)*2.56*4.8 -> 62.6688 | J128: 380635.5474
B129: 5600 | C129: =(B129/1000-0.2)*2.04*4.8 -> 52.8768 | D129: 362389.1599 | E129: =(B129/1000-0.2)*2.3*4.8 -> 59.616 | F129: 59.616 | G129: 379241.0349 | H129: 396803.08 | I129: =(B129/1000-0.2)*2.56*4.8 -> 66.3552 | J129: 396889.1627
A130: 5300 | B130: 5300 | C130: =(B130/1000-0.2)*2.04*5.1 -> 53.0604 | D130: 363081.6001 | E130: =(B130/1000-0.2)*2.3*5.1 -> 59.823 | F130: 59.823 | G130: 379933.4751 | H130: 397495.37 | I130: =(B130/1000-0.2)*2.56*5.1 -> 66.5856 | J130: 397581.6029
B131: 5600 | C131: =(B131/1000-0.2)*2.04*5.1 -> 56.1816 | D131: 379070.868 | E131: =(B131/1000-0.2)*2.3*5.1 -> 63.342 | F131: 63.342 | G131: 396401.1369 | H131: 414436.68 | I131: =(B131/1000-0.2)*2.56*5.1 -> 70.5024 | J131: 414526.5882
A132: 5600 | B132: 5600 | C132: =(B132/1000-0.2)*2.04*5.4 -> 59.4864 | D132: 395752.5762 | E132: 67.07 | F132: 67.07 | G132: 413561.2388 | H132: 431556.68 | I132: 74.65 | J132: 431650.3022
A134: Цены на оборудование ТМ «POLAIR», указанные в настоящем прайс-листе являются рекомендованными и могут отличаться от розничных цен у наших дилеров и региональных представителей.

Sheet Наборы панелей
D4: 2018-05-03
A6: ПРАЙС-ЛИСТ - РАСШИРИТЕЛЬНЫЕ ПОЯСА (ППУ 80 мм) В УПАКОВКЕ
A8: Расширительные пояса (толщина панелей 80 мм) в упаковке
A9: Расширительный пояс состоит из панелей: потолочная, для пола и 2 стеновых.
A10: Базовые цены с учётом НДС
A11: Ширина камеры, мм | B11: Ширина пояса, мм | C11: Набор панелей | E11: Цена расширительного пояса, Руб.
C12: потолочная и половая панели - по 1 шт. | D12: боковая панель - 2 шт.
B13: 1200 | C13: 1360х1200мм | D13: 2040х1200мм | E13: 29786.6286
B14: 900 | C14: 1360х900мм . | D14: 2040х900мм | E14: 22325.7947
A15: 1360 | B15: 600 | C15: 1360х600мм | D15: 2040х600мм | E15: 14631.68893
B16: 300 | C16: 1360х300мм | D16: 2040х300мм | E16: 7432.480405
B17: 1200 | C17: 1660х1200мм | D17: 2040х1200 | E17: 32503.40832
B18: 900 | C18: 1660х900мм | D18: 2040х900мм | E18: 24394.31058
A19: 1660 | B19: 600 | C19: 1660х600мм | D19: 2040х600мм | E19: 16258.14814
B20: 300 | C20: 1660х300мм | D20: 2040х300мм | E20: 8136.16244
B21: 1200 | C21: 1960х1200мм | D21: 2040х1200 | E21: 35247.25275
B22: 900 | C22: 1960х900мм | D22: 2040х900мм | E22: 26435.76176
A23: 1960 | B23: 600 | C23: 1960х600мм | D23: 2040х600мм | E23: 17624.27077
B24: 300 | C24: 1960х300мм | D24: 2040х300мм | E24: 8811.490988
B25: 1200 | C25: 2260х1200мм | D25: 2040х1200 | E25: 37992.38596
B26: 900 | C26: 2260х900мм | D26: 2040х900мм | E26: 28117.63915
A27: 2260 | B27: 600 | C27: 2260х600мм | D27: 2040х600мм | E27: 19003.28135
B28: 300 | C28: 2260х300мм | D28: 2040х300мм | E28: 9500.996279
B29: 1200 | C29: 2560х1200мм | D29: 2040х1200 | E29: 40722.05364
B30: 900 | C30: 2560х900мм | D30: 2040х900мм | E30: 30545.72881
A31: 2560 | B31: 600 | C31: 2560х600мм | D31: 2040х600мм | E31: 20368.11519
B32: 300 | C32: 2560х300мм | D32: 2040х300мм | E32: 10177.61362
A35: ПРАЙС-ЛИСТ - СТОЙКИ
A36: Базовые цены с учётом НДС
A37: СТОЙКИ
A38: для панелей толщиной 80 мм | B38: Цена, Руб. | C38: для панелей толщиной 100 мм | D38: Цена, Руб.
A39: 1200х 80 x 80 мм | B39: 566.244 | C39: 1200х 100 x 100 мм | D39: 820.155
A40: 2040х 80 x 80 мм | B40: 958.3455 | C40: 2040 х 100 x 100 мм | D40: 1359.435
A41: 2300 х 80 x 80 мм | B41: 1059.4605 | C41: 2300 х 100 x 100 мм | D41: 1550.43
A42: 2560 х 80 x 80 мм | B42: 1188.663 | C42: 2560 х 100 x 100 мм | D42: 1712.214
A44: Производитель оставляет за собой право частичного изменения технических характеристик оборудования без принципиальных изменений его эксплуатационных свойств

Sheet Дверные бл. универ-е и конт
D2: 2018-05-03
B5: ПРАЙС - ЛИСТ - ДВЕРНЫЕ БЛОКИ, ДВЕРИ
B7: Серийно выпускаются 3 основных типа дверей "Полаир" с толщиной полотна двери 80 мм: для светового проема 1850*800 -распашные, для светового проема 1200*1850 - контейнерные и откатные. Двери устанавливаются на камеры с толщиной панелей как 80мм так и 100 м
B9: Базовые цены с учетом НДС
B10: ДВЕРНЫЕ БЛОКИ УНИВЕРСАЛЬНЫЕ (распашная) световой проем 1850 x 800
B11: Комплектация: комплект ручки и петель, пороговая накладка, метизы
B12: 80 мм | C12: Цена, Руб. | D12: 100 мм | E12: Цена, Руб.
B13: 1200х2040 мм | C13: 29888.4705 | D13: 1200х2040 мм | E13: 30827.7165
B14: 1200х2300 мм | C14: 31297.3395 | D14: 1200х2300 мм | E14: 32692.7265
B15: 1200х2560 мм | C15: 33162.3495 | D15: 1200х2560 мм | E15: 35980.0875
B17: ДВЕРНЫЕ БЛОКИ КОНТЕЙНЕРНЫЕ (световой проем 1200 x1850)
B18: В состав дв.блока входят 2 боковые панели дв. проема с закладными элементами, панель-арка, дверь и комлектующие для монтажа
B20: ДВЕРЬ КОНТЕЙНЕРНАЯ (без панелей, с комплектацией) | E20: 39748.8
B21: Комплектация: комплект ручки и петель, комплект деталей для монтажа двери (2 стойки+перекладина+ пальцы латунные),
E24: Цена, Руб.
B25: Высота камеры = 2 200 мм (толщ панелей 80 мм) | C25: 1800 x2040 (бок.пан.дв.пр. 2040*300-2шт; пан.-арка 1200*190) | E25: 45005.05542
C26: 2400 x2040 (бок. пан.дв.пр. 2040*600-2шт; пан.-арка 1200*190) | E26: 48917.66875
C27: 3000 x2040 (бок. пан.дв.пр. 2040*900-2шт; пан.-арка 1200*190) | E27: 52830.28208
C28: 3600 x2040 (бок.пан.дв.пр. 2040*1200-2шт; пан.-арка 1200*190) | E28: 56742.8954
B30: Высота камеры = 2 460 мм (толщ.панелей 80 мм) | C30: 1800 x2300 (бок. пан.дв.пр. 2300*300-2шт; пан.-арка 1200*450) | E30: 46554.80332
C31: 2400 x2300 (бок. пан.дв.пр. 2300*600-2шт; пан.-арка 1200*450) | E31: 50966.34839
C32: 3000 x2300 (бок. пан.дв.пр. 2300*900-2шт; пан.-арка 1200*450) | E32: 55377.89346
C33: 3600 x2300 (бок. пан.дв.пр. 2300*1200-2шт; пан.-арка 1200*450) | E33: 59789.43853
B35: Высота камеры= 2 720 мм (толщ.панелей 80 мм) | C35: 1800 x2560 (бок. пан.дв.пр. 2560*300-2шт; пан.-арка 1200*710) | E35: 48329.30585
C36: 2400 x2560 (бок. пан.дв.пр. 2560*600-2шт; пан.-арка 1200*710) | E36: 53239.78266
C37: 3000 x2560 (бок. пан.дв.пр. 2560*900-2шт; пан.-арка 1200*710) | E37: 58150.25948
C38: 3600 x2560 (бок. пан.дв.пр. 2560*1200-2шт; пан.-арка 1200*710) | E38: 63060.73629
B41: Высота камеры = 2 240 мм (толщ панелей 100 мм) | C41: 1800 x2040 (бок.пан.дв.пр. 2040*300-2шт; пан.-арка 1200*190) | E41: 45347.48264
C42: 2400 x2040 (бок. пан.дв.пр. 2040*600-2шт; пан.-арка 1200*190) | E42: 49704.89832
C43: 3000 x2040 (бок. пан.дв.пр. 2040*900-2шт; пан.-арка 1200*190) | E43: 54062.314
C44: 3600 x2040 (бок.пан.дв.пр. 2040*1200-2шт; пан.-арка 1200*190) | E44: 58419.72969
B46: Высота камеры = 2 500 мм (толщ.панелей 100 мм) | C46: 1800 x2300 (бок. пан.дв.пр. 2300*300-2шт; пан.-арка 1200*450) | E46: 47330.26563
C47: 2400 x2300 (бок. пан.дв.пр. 2300*600-2шт; пан.-арка 1200*450) | E47: 52243.0959
C48: 3000 x2300 (бок. пан.дв.пр. 2300*900-2шт; пан.-арка 1200*450) | E48: 57155.92616
C49: 3600 x2300 (бок. пан.дв.пр. 2300*1200-2шт; пан.-арка 1200*450) | E49: 62068.75643
B51: Высота камеры= 2 760 мм (толщ.панелей 100 мм) | C51: 1800 x2560 (бок. пан.дв.пр. 2560*300-2шт; пан.-арка 1200*710) | E51: 49311.8719
C52: 2400 x2560 (бок. пан.дв.пр. 2560*600-2шт; пан.-арка 1200*710) | E52: 54780.11675
C53: 3000 x2560 (бок. пан.дв.пр. 2560*900-2шт; пан.-арка 1200*710) | E53: 60248.3616
C54: 3600 x2560 (бок. пан.дв.пр. 2560*1200-2шт; пан.-арка 1200*710) | E54: 65716.60645
B57: Дополнительное оборудование:
B58: Комплект для низкотемпературных камер: компенсационный клапан, ПЭН обогрева двери
B60: Тип двери | D60: Толщина панели
D61: 80 мм | E61: 100 мм
D62: Цена, Руб. | E62: Цена, Руб.
B63: Распашная | D63: 858 | E63: 900
B64: Откатная или контейнерная | D64: 905 | E64: 963
B67: Производитель оставляет за собой право частичного изменения технических характеристик оборудования без принципиальных изменений его эксплуатационных свойств

Sheet Дверные бл. с откат.дверью
D2: 2018-05-03
B5: ПРАЙС - ЛИСТ - ДВЕРНЫЕ БЛОКИ, ДВЕРИ
B7: Серийно выпускаются 3 основных типа дверей "Полаир" с толщиной полотна двери 80 мм: для светового проема 1850*800 -распашные, для светового проема 1200*1850 - контейнерные и откатные. Двери устанавливаются на камеры с толщиной панелей как 80мм так и 100 м
B9: Базовые цены с учетом НДС
B10: ДВЕРНЫЕ БЛОКИ С ОТКАТНОЙ ДВЕРЬЮ
E12: Цена, Руб.
B13: ДВЕРЬ ОТКАТНАЯ (без панелей, с комплектацией) | E13: 62777 | H13: =I13*1.15 -> 50809.99 | I13: 44182.6
B14: Комплектация: 1 упаковка - комплект деталей для сборки откатной двери, комплект ручка и замок, метизы
B15: 2 упаковка - козырек, кронштейны, профиль алюминевый L = 2 710 мм, уплотнение двери
C16: Дверные блоки с откатной дверью для различной высоты камер(дверь,пан.дв.проема,пан.-арка,комплектация)
E17: Цена, Руб.
B18: Высота камеры = 2 200 мм (толщ панелей 80 мм) | C18: 1800 x2040 (бок.пан.дв.пр. 2040*300-2шт; пан.-арка 1200*190) | E18: 68034.7563 | H18: =I18*1.15 -> 54711.25 | I18: 47575
C19: 2400 x2040 (бок. пан.дв.пр. 2040*600-2шт; пан.-арка 1200*190) | E19: 71947.36963 | H19: =I19*1.15 -> 57640.99 | I19: 50122.6
C20: 3000 x2040 (бок. пан.дв.пр. 2040*900-2шт; пан.-арка 1200*190) | E20: 75859.98295 | H20: 60568.2 | I20: 52668
C21: 3600 x2040 (бок.пан.дв.пр. 2040*1200-2шт; пан.-арка 1200*190) | E21: 82126.04791 | H21: 63667.45 | I21: 55363
B23: Высота камеры = 2 460 мм (толщ.панелей 80 мм) | C23: 1800 x2300 (бок. пан.дв.пр. 2300*300-2шт; пан.-арка 1200*450) | E23: 69584.5042 | H23: 55832.04 | I23: 48549.6
C24: 2400 x2300 (бок. пан.дв.пр. 2300*600-2шт; пан.-арка 1200*450) | E24: 73996.04927 | H24: 59132.425 | I24: 51419.5
C25: 3000 x2300 (бок. пан.дв.пр. 2300*900-2шт; пан.-арка 1200*450) | E25: 78407.59434 | H25: 62604.85 | I25: 54439
C26: 3600 x2300 (бок. пан.дв.пр. 2300*1200-2шт; пан.-арка 1200*450) | E26: 82745.00568 | H26: 65906.5 | I26: 57310
B28: Высота камеры= 2 720 мм (толщ.панелей 80 мм) | C28: 1800 x2560 (бок. пан.дв.пр. 2560*300-2шт; пан.-арка 1200*710) | E28: 71359.00672 | H28: 56950.3 | I28: 49522
C29: 2400 x2560 (бок. пан.дв.пр. 2560*600-2шт; пан.-арка 1200*710) | E29: 76269.48354 | H29: 60795.9 | I29: 52866
C30: 3000 x2560 (бок. пан.дв.пр. 2560*900-2шт; пан.-арка 1200*710) | E30: 81179.96035 | H30: 64471.99 | I30: 56062.6
C31: 3600 x2560 (бок. пан.дв.пр. 2560*1200-2шт; пан.-арка 1200*710) | E31: 86090.43717 | H31: 68145.55 | I31: 59257
E33: 0 | H33: 0
B34: Высота камеры = 2 240 мм (толщ панелей 100 мм) | C34: 1800 x2040 (бок.пан.дв.пр. 2040*300-2шт; пан.-арка 1200*190) | E34: 68377.18351 | H34: 58869.305 | I34: 51190.7
C35: 2400 x2040 (бок. пан.дв.пр. 2040*600-2шт; пан.-арка 1200*190) | E35: 72734.5992 | H35: 58308.91 | I35: 50703.4
C36: 3000 x2040 (бок. пан.дв.пр. 2040*900-2шт; пан.-арка 1200*190) | E36: 77092.01488 | H36: 61542.25 | I36: 53515
C37: 3600 x2040 (бок.пан.дв.пр. 2040*1200-2шт; пан.-арка 1200*190) | E37: 81449.43056 | H37: 64947.63 | I37: 56476.2
B39: Высота камеры = 2 500 мм (толщ.панелей 100 мм) | C39: 1800 x2300 (бок. пан.дв.пр. 2300*300-2шт; пан.-арка 1200*450) | E39: 70359.96651 | H39: 56311.475 | I39: 48966.5
C40: 2400 x2300 (бок. пан.дв.пр. 2300*600-2шт; пан.-арка 1200*450) | E40: 75272.79677 | H40: 59957.205 | I40: 52136.7
C41: 3000 x2300 (бок. пан.дв.пр. 2300*900-2шт; пан.-арка 1200*450) | E41: 80185.62704 | H41: 63774.975 | I41: 55456.5
C42: 3600 x2300 (бок. пан.дв.пр. 2300*1200-2шт; пан.-арка 1200*450) | E42: 85098.45731 | H42: 67421.97 | I42: 58627.8
B44: Высота камеры= 2 760 мм (толщ.панелей 100 мм) | C44: 1800 x2560 (бок. пан.дв.пр. 2560*300-2шт; пан.-арка 1200*710) | E44: 72341.57278 | H44: 57544.85 | I44: 50039
C45: 2400 x2560 (бок. пан.дв.пр. 2560*600-2шт; пан.-арка 1200*710) | E45: 77809.81763 | H45: 61777.54 | I45: 53719.6
C46: 3000 x2560 (бок. пан.дв.пр. 2560*900-2шт; пан.-арка 1200*710) | E46: 83278.06248 | H46: 65119.67 | I46: 56625.8
C47: 3600 x2560 (бок. пан.дв.пр. 2560*1200-2шт; пан.-арка 1200*710) | E47: 88746.30733 | H47: 69893.78 | I47: 60777.2
B49: Базовые цены с учётом НДС
B50: Дополнительное оборудование:
B51: Комплект для низкотемпературных камер: компенсационный клапан, ПЭН обогрева двери
B53: Тип двери | D53: Толщина панели
D54: 80 мм | E54: 100 мм
D55: Цена, Руб. | E55: Цена, Руб. | H55: Цена, Руб.
B56: Распашная | D56: 858 | E56: 900 | H56: =J56*1.15 -> 713 | I56: =K56*1.15 -> 724.5 | J56: 620 | K56: 630
B57: Откатная или контейнерная | D57: 905 | E57: 963 | H57: =J57*1.15 -> 759 | I57: =K57*1.15 -> 770.5 | J57: 660 | K57: 670
B59: Производитель оставляет за собой право частичного изменения технических характеристик оборудования без принципиальных изменений его эксплуатационных свойств

Sheet КХН со стеклом
D2: 2018-05-03
B5: ПРАЙС - ЛИСТ КАМЕРЫ ХОЛОДИЛЬНЫЕ МОДУЛЬНЫЕ СО СТЕКЛОМ
B7: Все холодильные камеры со стеклом выпускаются на базе стандартных камер "Полаир" с толщиной панелей 80 мм. Размер стеклянного блока по высоте 1830 мм. Стеклянные дверные блоки одностворчатые имееют ширину 900 мм, двухстворчатые - 1200 мм.
B9: Комплектация: профиль соединительный для соединения стеклоблоков друг с другом; профиль отделочный с внутренней
B10: и наружной стороны камеры; ручка двери; замок (по запросу); метизы.
E12: Цена, Руб.
B13: КХН-2,94cт(1360*1360*2200) | C13: Стекл. блок по стороны 1360, дверь унив.по смежной стороне | E13: 69399.855
C14: Стекл.блок с двухстворчатой дверью по стороне 1360 | E14: 77890
C15: Стекл. блок по двум сторонам, дв.стекл. двухств. по стороне 1360 | E15: 90215
B18: КХН-4,41ст(1960*1360*2200) | C18: Стекл. блок по стороны 1960, дверь унив.по смежной стороне | E18: 83310
C19: Стекл.блок с одностворчатой дверью по стороне 1960 | E19: 82890
C20: Стекл. блок по двум смежным сторонам, дв.стекл. одноств.по ст.1960 | E20: 93360
B23: КХН-6,61ст(1960*1960*2200) | C23: Стекл. блок по стороны 1960, дверь унив.по смежной стороне | E23: 98170
C24: Стекл.блок с одностворчатой дверью по стороне 1960 | E24: 97750
C25: Стекл. блок по двум смежным сторонам, дв.стекл. одноств.по ст.1960 | E25: 111855
B29: КХН-7,71ст(2260*1960*2200) | C29: Стекл. блок по стороны 2260, дверь унив.по смежной стороне | E29: 109650
C30: Стекл.блок с одностворчатой дверью по стороне 2260 | E30: 109230
C31: Стекл. блок по двум смежным сторонам, дв.стекл. одноств.по ст.2260 | E31: 120760
B34: КХН-8,81ст(2560*1960*2200) | C34: Стекл. блок по стороны 1960, дверь унив.по смежной стороне | E34: 113030
C35: Стекл.блок с одностворчатой дверью по стороне 1960 | E35: 112610
C36: Стекл. блок по стороны 2560, дверь унив.по смежной стороне | E36: 117760
C37: Стекл.блок с одностворчатой дверью по стороне 2560 | E37: 117340
C38: Стекл. блок по двум смежным сторонам, дв.стекл. одноств.по ст.2560 | E38: 129730
B40: КХН-11,02ст(3160*1960*2200) | C40: Стекл. блок по стороны 1960, дверь унив.по смежной стороне | E40: 127890
C41: Стекл.блок с одностворчатой дверью по стороне 1960 | E41: 127470
C42: Стекл. блок по стороны 3160, дверь унив.по смежной стороне | E42: 137350
C43: Стекл.блок с одностворчатой дверью по стороне 3160 | E43: 136930
C44: Стекл. блок по двум сторонам, дв.стекл. одноств.по ст.3160 | E44: 147610
C45: Стекл. блок по двум сторонам, дв.стекл. двухств.по ст.3160 | E45: 160390
B47: КХН-11,75ст(2560*2560*2200) | C47: Стекл. блок по стороны 2560, дверь унив.по смежной стороне | E47: 134930
C48: Стекл.блок с одностворчатой дверью по стороне 2560 | E48: 134500
C49: Стекл. блок по двум смежным сторонам, дв.стекл. одноств.по ст.2560 | E49: 150390
B52: Производитель оставляет за собой право частичного изменения технических характеристик оборудования без принципиальных изменений его эксплуатационных свойств

Sheet КХН со СФ
G3: 2018-05-03
A6: ПРАЙС-ЛИСТ - КАМЕРЫ POLAIR СО СТЕКЛЯННЫМ ФРОНТОМ
A9: Базовые цены с учетом НДС
A10: Внешние габариты | C10: К-во дверей в СФ | D10: Высота 2 200 мм | F10: Высота 2 460 мм | H10: Высота 2 720 мм
A11: Длина | B11: Глубина | D11: V, м3 | E11: Цена, Руб. | F11: V, м3 | G11: Цена, Руб. | H11: V, м3 | I11: Цена, Руб.
A12: Толщина панелей 80 мм | D12: КАМЕРЫ СО СТЕКЛЯННЫМ ФРОНТОМ
A14: 1960 | B14: 1360 | C14: 2 | D14: 4.41 | E14: 131424.3 | F14: 4.968 | G14: 136194.45 | H14: 5.5296 | I14: 141472.8
B15: 1660 | D15: 5.51 | E15: 138637.8 | F15: 6.21 | G15: 143860.5 | H15: 6.912 | I15: 149592.45
B16: 1960 | D16: 6.61 | E16: 145851.3 | F16: 7.452 | G16: 151526.55 | H16: 8.2944 | I16: 157712.1
B17: 2260 | D17: 7.71 | E17: 153064.8 | F17: 8.694 | G17: 159193.65 | H17: 9.6768 | I17: 165831.75
B18: 2560 | D18: 8.81 | E18: 160278.3 | F18: 9.936 | G18: 166859.7 | H18: 11.0592 | I18: 173950.35
A19: 2860 | B19: 1360 | C19: 3 | D19: 6.61 | E19: 178681.65 | F19: 7.452 | G19: 184828.35 | H19: 8.2944 | I19: 191484.3
B20: 1660 | D20: 8.26 | E20: 187575.15 | F20: 9.315 | G20: 194175.45 | H20: 10.368 | I20: 201285
B21: 1960 | D21: 9.91 | E21: 196469.7 | F21: 11.178 | G21: 203522.55 | H21: 12.4416 | I21: 211084.65
B22: 2260 | D22: 11.57 | E22: 205363.2 | F22: 13.041 | G22: 212869.65 | H22: 14.5152 | I22: 220884.3
B23: 2560 | D23: 13.22 | E23: 214257.75 | F23: 14.904 | G23: 222216.75 | H23: 16.5888 | I23: 230683.95
A24: 3760 | B24: 1360 | C24: 4 | D24: 8.81 | E24: 229090.05 | F24: 9.936 | G24: 236613.3 | H24: 11.0592 | I24: 244645.8
B25: 1660 | D25: 11.02 | E25: 239664.6 | F25: 12.42 | G25: 247640.4 | H25: 13.824 | I25: 256126.5
B26: 1960 | D26: 13.22 | E26: 250239.15 | F26: 14.904 | G26: 258668.55 | H26: 16.5888 | I26: 267607.2
B27: 2260 | D27: 15.42 | E27: 260813.7 | F27: 17.388 | G27: 269695.65 | H27: 19.3536 | I27: 275160.9
B28: 2560 | D28: 17.63 | E28: 271388.25 | F28: 19.872 | G28: 277087.65 | H28: 22.1184 | I28: 279087.9
A29: 4360 | B29: 1360 | C29: 5 | D29: 10.28 | E29: 269898.3 | F29: 11.592 | G29: 278301.45 | H29: 12.9024 | I29: 287212.8
B30: 1660 | D30: 12.85 | E30: 281593.2 | F30: 14.49 | G30: 290448.9 | H30: 16.128 | I30: 299812.8
B31: 1960 | D31: 15.42 | E31: 293287.05 | F31: 17.388 | G31: 300175.05 | H31: 19.3536 | I31: 312413.85
B32: 2260 | D32: 17.99 | E32: 301915.95 | F32: 20.286 | G32: 302596.35 | H32: 22.5792 | I32: 309418.2
B33: 2560 | D33: 20.56 | E33: 304981.95 | F33: 23.184 | G33: 311107.65 | H33: 25.8048 | I33: 320759.25
A34: 5260 | B34: 1360 | C34: 6 | D34: 12.48 | E34: 317156.7 | F34: 14.076 | G34: 326935.35 | H34: 15.6672 | I34: 337224.3
B35: 1660 | D35: 15.61 | E35: 330531.6 | F35: 17.595 | G35: 339292.8 | H35: 19.584 | I35: 349367.55
B36: 1960 | D36: 18.73 | E36: 341714.1 | F36: 21.114 | G36: 340763.85 | H36: 23.5008 | I36: 351505.35
B37: 2260 | D37: 21.85 | E37: 343907.55 | F37: 24.633 | G37: 351738.45 | H37: 27.4176 | I37: 362220.6
B38: 2560 | D38: 24.97 | E38: 353752.35 | F38: 56.304 | G38: 364184.1 | H38: 31.3344 | I38: 375073.65
